fUSD/lending_fUSD_20241227
["ID","MTS","AMOUNT","RATE_DAILY","PERIOD"]
[346841024,1735318239942,-500.0,0.00010654,2]
[346841025,1735318239952,-500.0,0.00010654,2]
[346841026,1735318239962,-500.0,0.00010655,2]
[346841027,1735318239972,-500.0,0.00010655,2]
[346841028,1735318239981,-1268.34,0.00010655,2]
[346841029,1735318239991,-500.0,0.00010655,2]
[346841030,1735318240001,-154.74949624,0.00010655,2]
[346841031,1735318240013,-345.25050376,0.00010655,2]
[346841032,1735318240023,-1032.59,0.00010655,2]
[346841033,1735318240033,-500.0,0.00010655,2]
[346841034,1735318240042,-500.0,0.00010655,2]
[346841035,1735318240052,-500.0,0.00010655,2]
[346841036,1735318240061,-500.0,0.00010655,2]
[346841037,1735318240070,-500.0,0.00010655,2]
[346841038,1735318240082,-1187.26,0.00010655,2]
[346841039,1735318240092,-864.43,0.00010655,2]
[346841040,1735318240102,-131.50311228,0.00010655,2]
[346841041,1735318240114,-406.95688772,0.00010655,2]
[346841042,1735318240123,-500.0,0.00010655,2]
[346841043,1735318240133,-663.63,0.00010655,2]
[346841044,1735318240142,-500.0,0.00010655,2]
[346841045,1735318240152,-500.0,0.00010655,2]
[346841046,1735318240161,-2003.42852066,0.00010655,2]
[346841047,1735318240172,-305.97147934,0.00010655,2]
[346841048,1735318240183,-516.99,0.00010655,2]
[346841049,1735318240199,-500.0,0.00010655,2]
[346841050,1735318240209,-1640.33,0.00010655,2]
[346841051,1735318240218,-500.0,0.00010655,2]
[346841052,1735318240228,-855.52,0.00010655,2]
[346841053,1735318240238,-500.0,0.00010655,2]
[346841054,1735318240247,-114.10463531,0.00010655,2]
[346841055,1735318240295,-385.89536469,0.00010655,2]
[346841056,1735318240304,-500.0,0.00010655,2]
[346841057,1735318240314,-3403.73,0.00010655,2]
[346841058,1735318240323,-644.53,0.00010655,2]
[346841059,1735318240333,-1514.4,0.00010655,2]
[346841060,1735318240342,-500.0,0.00010655,2]
[346841061,1735318240352,-2257.57,0.00010655,2]
[346841062,1735318240361,-500.0,0.00010655,2]
[346841064,1735318240371,-342.87463531,0.00010655,2]
[346841084,1735318242386,-157.12536469,0.00010655,2]
[346841085,1735318242397,-26166.28,0.00010655,2]
[346841086,1735318242407,-560.89,0.00010655,2]
[346841087,1735318242417,-749.21,0.00010655,2]
[346841088,1735318242427,-507.97,0.00010655,2]
[346841089,1735318242437,-500.0,0.00010655,2]
[346841090,1735318242447,-3162.16,0.00010655,2]
[346841091,1735318242457,-500.0,0.00010655,2]
[346841092,1735318242467,-963.8,0.00010655,2]
[346841093,1735318242477,-500.0,0.00010655,2]
[346841094,1735318242487,-1536.51,0.00010655,2]
[346841095,1735318242496,-500.0,0.00010655,2]
[346841096,1735318242506,-500.0,0.00010655,2]
[346841097,1735318242515,-1544.04,0.00010655,2]
[346841098,1735318242525,-565.54,0.00010655,2]
[346841099,1735318242534,-884.5,0.00010655,2]
[346841100,1735318242544,-2946.21,0.00010655,2]
[346841101,1735318242553,-500.0,0.00010655,2]
[346841102,1735318242563,-601.11,0.00010655,2]
[346841105,1735318242573,-500.0,0.00010655,2]
[346841106,1735318242584,-1710.21,0.00010655,2]
[346841109,1735318242594,-1946.94463531,0.00010655,2]
[346841113,1735318242630,-486.84997,0.00010655,2]
[346841126,1735318243062,-2943.63539469,0.00010655,2]
[346841127,1735318243072,-500.0,0.00010655,2]
[346841128,1735318243082,-500.0,0.00010655,2]
[346841129,1735318243091,-500.0,0.00010655,2]
[346841130,1735318243102,-308.50993363,0.00010655,2]
[346841160,1735318245829,-500.0,0.00010654,2]
[346841161,1735318245839,-1137.79,0.00010654,2]
[346841162,1735318245850,-2541.15006637,0.00010655,2]
[346841163,1735318245860,-500.0,0.00010655,2]
[346841164,1735318245870,-1482.05,0.00010655,2]
[346841165,1735318245880,-500.0,0.00010655,2]
[346841166,1735318245891,-500.0,0.00010655,2]
[346841167,1735318245901,-500.0,0.00010655,2]
[346841168,1735318245911,-500.0,0.00010655,2]
[346841169,1735318245922,-533.6,0.00010655,2]
[346841170,1735318245932,-500.0,0.00010655,2]
[346841171,1735318245942,-500.0,0.00010655,2]
[346841172,1735318245952,-526.38,0.00010655,2]
[346841173,1735318245962,-951.99739039,0.00010655,2]
[346841174,1735318245974,-1197.95260961,0.00010655,2]
[346841175,1735318245984,-534.38439039,0.00010655,2]
[346841176,1735318245997,-412.45560961,0.00010655,2]
[346841177,1735318246006,-1982.16,0.00010655,2]
[346841178,1735318246016,-742.34,0.00010655,2]
[346841179,1735318246030,-1689.57,0.00010655,2]
[346841180,1735318246040,-500.0,0.00010655,2]
[346841181,1735318246051,-500.0,0.00010655,2]
[346841182,1735318246060,-1364.86,0.00010655,2]
[346841183,1735318246071,-585.07,0.00010655,2]
[346841184,1735318246082,-500.0,0.00010655,2]
[346841185,1735318246091,-500.0,0.00010655,2]
[346841186,1735318246101,-500.0,0.00010655,2]
[346841187,1735318246111,-500.0,0.00010655,2]
[346841188,1735318246122,-500.0,0.00010655,2]
[346841189,1735318246132,-1689.31,0.00010655,2]
[346841190,1735318246141,-960.97,0.00010655,2]
[346841191,1735318246151,-500.0,0.00010655,2]
[346841192,1735318246161,-500.0,0.00010655,2]
[346841193,1735318246171,-10081.89,0.00010655,2]
[346841194,1735318246181,-500.0,0.00010655,2]
[346841195,1735318246195,-523.07,0.00010655,2]
[346841196,1735318246205,-606.43,0.00010656,2]
[346841197,1735318246215,-500.0,0.00010656,2]
[346841198,1735318246225,-742.14,0.00010656,2]
[346841199,1735318246235,-695.03,0.00010656,2]
[346841200,1735318246245,-500.0,0.00010656,2]
[346841201,1735318246255,-500.0,0.00010656,2]
[346841202,1735318246264,-508.16,0.00010656,2]
[346841203,1735318246274,-953.83,0.00010656,2]
[346841204,1735318246283,-651.0,0.00010656,2]
[346841205,1735318246293,-893.28,0.00010656,2]
[346841206,1735318246302,-857.3,0.00010656,2]
[346841207,1735318246312,-560.12,0.00010656,2]
[346841208,1735318246321,-500.0,0.00010656,2]
[346841209,1735318246331,-500.0,0.00010656,2]
[346841210,1735318246341,-500.0,0.00010656,2]
[346841211,1735318246350,-927.36,0.00010656,2]
[346841212,1735318246360,-500.0,0.00010656,2]
[346841213,1735318246373,-500.0,0.00010656,2]
[346841214,1735318246383,-500.0,0.00010656,2]
[346841215,1735318246392,-500.0,0.00010656,2]
[346841216,1735318246403,-500.0,0.00010656,2]
[346841217,1735318246413,-500.0,0.00010656,2]
[346841218,1735318246423,-500.0,0.00010656,2]
[346841219,1735318246434,-500.0,0.00010656,2]
[346841220,1735318246443,-1010.3,0.00010656,2]
[346841221,1735318246454,-513.79,0.00010656,2]
[346841222,1735318246464,-906.7,0.00010656,2]
[346841223,1735318246474,-500.0,0.00010656,2]
[346841224,1735318246483,-500.0,0.00010656,2]
[346841225,1735318246493,-500.0,0.00010656,2]
[346841226,1735318246503,-1490.29,0.00010656,2]
[346841227,1735318246514,-500.0,0.00010656,2]
[346841228,1735318246524,-500.0,0.00010656,2]
[346841229,1735318246534,-500.0,0.00010656,2]
[346841230,1735318246543,-500.0,0.00010656,2]
[346841231,1735318246553,-500.0,0.00010656,2]
[346841232,1735318246563,-1165.32,0.00010656,2]
[346841233,1735318246573,-500.0,0.00010656,2]
[346841234,1735318246583,-632.56,0.00010656,2]
[346841235,1735318246593,-500.0,0.00010656,2]
[346841236,1735318246602,-714.85,0.00010656,2]
[346841237,1735318246612,-630.84,0.00010656,2]
[346841238,1735318246622,-595.91,0.00010656,2]
[346841239,1735318246633,-1168.18,0.00010656,2]
[346841240,1735318246642,-500.0,0.00010656,2]
[346841241,1735318246652,-587.66,0.00010656,2]
[346841242,1735318246662,-1052.16,0.00010656,2]
[346841243,1735318246672,-569.88,0.00010656,2]
[346841244,1735318246682,-571.62,0.00010656,2]
[346841246,1735318246691,-680.23,0.00010656,2]
[346841248,1735318246701,-868.57,0.00010656,2]
[346841250,1735318246711,-500.0,0.00010656,2]
[346841252,1735318246721,-500.0,0.00010656,2]
[346841254,1735318246731,-1246.25,0.00010656,2]
[346841256,1735318246741,-540.39,0.00010656,2]
[346841257,1735318246750,-500.0,0.00010656,2]
[346841258,1735318246760,-500.0,0.00010656,2]
[346841259,1735318246770,-1365.08,0.00010656,2]
[346841260,1735318246780,-1224.62,0.00010656,2]
[346841261,1735318246792,-500.0,0.00010656,2]
[346841262,1735318246802,-867.71,0.00010656,2]
[346841263,1735318246811,-500.0,0.00010656,2]
[346841264,1735318246821,-1051.95,0.00010656,2]
[346841265,1735318246832,-500.0,0.00010656,2]
[346841266,1735318246842,-1687.69,0.00010656,2]
[346841267,1735318246851,-947.08,0.00010656,2]
[346841268,1735318246861,-2337.77,0.00010656,2]
[346841269,1735318246870,-500.0,0.00010656,2]
[346841270,1735318246880,-688.83,0.00010656,2]
[346841271,1735318246890,-507.7,0.00010656,2]
[346841272,1735318246900,-500.0,0.00010656,2]
[346841273,1735318246910,-913.51,0.00010656,2]
[346841274,1735318246919,-6648.63,0.00010656,2]
[346841275,1735318246929,-1027.34,0.00010656,2]
[346841276,1735318246940,-5000.95,0.00010656,2]
[346841277,1735318246950,-569.16,0.00010656,2]
[346841278,1735318246961,-872.87,0.00010656,2]
[346841279,1735318246971,-3918.53,0.00010656,2]
[346841280,1735318246980,-500.0,0.00010656,2]
[346841281,1735318246990,-1019.44,0.00010656,2]
[346841282,1735318247000,-500.0,0.00010656,2]
[346841283,1735318247010,-1033.1,0.00010656,2]
[346841284,1735318247019,-2576.55,0.00010656,2]
[346841285,1735318247029,-1115.55,0.00010656,2]
[346841286,1735318247038,-1005.86,0.00010656,2]
[346841287,1735318247057,-893.38,0.00010656,2]
[346841288,1735318247068,-903.19,0.00010656,2]
[346841289,1735318247078,-1086.82,0.00010656,2]
[346841290,1735318247088,-1290.92,0.00010656,2]
[346841291,1735318247098,-522.83,0.00010656,2]
[346841292,1735318247108,-1636.65,0.00010656,2]
[346841293,1735318247118,-1412.41,0.00010656,2]
[346841294,1735318247128,-761.54,0.00010656,2]
[346841295,1735318247139,-2290.58,0.00010656,2]
[346841296,1735318247149,-500.0,0.00010656,2]
[346841297,1735318247159,-1285.79,0.00010656,2]
[346841298,1735318247169,-1359.34,0.00010656,2]
[346841299,1735318247181,-500.0,0.00010656,2]
[346841301,1735318247194,-500.0,0.00010656,2]
[346841303,1735318247204,-793.09,0.00010656,2]
[346841305,1735318247214,-1642.5,0.00010656,2]
[346841307,1735318247224,-1155.36,0.00010656,2]
[346841309,1735318247235,-10191.4,0.00010656,2]
[346841311,1735318247245,-946.08,0.00010656,2]
[346841313,1735318247255,-500.0,0.00010656,2]
[346841315,1735318247266,-253.86,0.00010657,2]
[346841317,1735318247276,-250.62,0.00010657,2]
[346841318,1735318247286,-250.9,0.00010657,2]
[346841319,1735318247295,-500.0,0.00010657,2]
[346841320,1735318247305,-500.0,0.00010657,2]
[346841321,1735318247315,-630.66,0.00010657,2]
[346841322,1735318247324,-500.0,0.00010657,2]
[346841323,1735318247335,-500.0,0.00010657,2]
[346841324,1735318247345,-500.0,0.00010657,2]
[346841325,1735318247357,-500.0,0.00010657,2]
[346841326,1735318247367,-527.65,0.00010657,2]
[346841327,1735318247377,-570.5,0.00010657,2]
[346841328,1735318247386,-500.0,0.00010657,2]
[346841329,1735318247396,-680.25,0.00010657,2]
[346841330,1735318247406,-500.0,0.00010657,2]
[346841331,1735318247415,-371.26691718,0.00010657,2]
[346841332,1735318247426,-500.0,0.00010657,2]
[346841333,1735318247436,-661.59,0.00010657,2]
[346841334,1735318247446,-884.28,0.00010657,2]
[346841335,1735318247456,-962.02,0.00010657,2]
[346841336,1735318247466,-555.7,0.00010657,2]
[346841337,1735318247476,-500.0,0.00010657,2]
[346841338,1735318247486,-500.0,0.00010657,2]
[346841339,1735318247496,-711.89,0.00010657,2]
[346841340,1735318247506,-500.0,0.00010657,2]
[346841341,1735318247515,-794.57,0.00010657,2]
[346841342,1735318247525,-500.0,0.00010657,2]
[346841343,1735318247535,-527.19,0.00010657,2]
[346841344,1735318247545,-806.53,0.00010657,2]
[346841345,1735318247554,-500.0,0.00010657,2]
[346841346,1735318247564,-1041.96,0.00010657,2]
[346841347,1735318247575,-500.0,0.00010657,2]
[346841348,1735318247585,-1173.23,0.00010657,2]
[346841349,1735318247595,-500.0,0.00010657,2]
[346841350,1735318247605,-500.0,0.00010657,2]
[346841351,1735318247614,-500.0,0.00010657,2]
[346841352,1735318247624,-500.0,0.00010657,2]
[346841353,1735318247634,-500.0,0.00010657,2]
[346841354,1735318247644,-1793.42,0.00010657,2]
[346841355,1735318247653,-500.0,0.00010657,2]
[346841356,1735318247663,-535.92,0.00010657,2]
[346841357,1735318247673,-611.33,0.00010657,2]
[346841358,1735318247683,-500.0,0.00010657,2]
[346841359,1735318247693,-1237.17,0.00010657,2]
[346841360,1735318247702,-500.0,0.00010657,2]
[346841361,1735318247712,-790.41,0.00010657,2]
[346841362,1735318247725,-1102.44,0.00010657,2]
[346841363,1735318247735,-610.67,0.00010657,2]
[346841364,1735318247744,-500.0,0.00010657,2]
[346841365,1735318247754,-562.2,0.00010657,2]
[346841366,1735318247764,-295.75866373,0.00010657,2]
[346841367,1735318247815,-216.21133627,0.00010657,2]
[346841368,1735318247826,-40.26866373,0.00010657,2]
[346841369,1735318247854,-459.73133627,0.00010657,2]
[346841370,1735318247864,-500.0,0.00010657,2]
[346841371,1735318247874,-220.75672703,0.00010657,2]
[346841372,1735318247884,-762.63,0.00010657,2]
[346841373,1735318247894,-500.0,0.00010657,2]
[346841374,1735318247904,-851.43,0.00010657,2]
[346841375,1735318247913,-500.0,0.00010657,2]
[346841376,1735318247924,-967.09,0.00010657,2]
[346841377,1735318247934,-682.54,0.00010657,2]
[346841378,1735318247945,-500.0,0.00010657,2]
[346841379,1735318247955,-680.5,0.00010657,2]
[346841380,1735318247966,-1139.71,0.00010657,2]
[346841381,1735318247976,-500.0,0.00010657,2]
[346841382,1735318247986,-500.0,0.00010657,2]
[346841383,1735318247996,-861.27,0.00010657,2]
[346841384,1735318248006,-673.11,0.00010657,2]
[346841385,1735318248016,-500.0,0.00010657,2]
[346841386,1735318248026,-500.0,0.00010657,2]
[346841387,1735318248037,-892.95,0.00010657,2]
[346841388,1735318248047,-708.69,0.00010657,2]
[346841389,1735318248058,-505.57562773,0.00010657,2]
[346841390,1735318248068,-875.3,0.00010657,2]
[346841391,1735318248078,-621.29,0.00010657,2]
[346841392,1735318248088,-500.0,0.00010657,2]
[346841393,1735318248098,-679.08,0.00010657,2]
[346841394,1735318248108,-500.0,0.00010657,2]
[346841395,1735318248119,-542.66,0.00010657,2]
[346841396,1735318248129,-623.75,0.00010657,2]
[346841397,1735318248139,-791.92,0.00010657,2]
[346841398,1735318248149,-291.55284487,0.00010657,2]
[346841399,1735318248162,-514.36715513,0.00010657,2]
[346841400,1735318248171,-500.0,0.00010657,2]
[346841401,1735318248182,-500.0,0.00010657,2]
[346841402,1735318248194,-500.0,0.00010657,2]
[346841403,1735318248204,-500.0,0.00010657,2]
[346841404,1735318248213,-640.53,0.00010657,2]
[346841405,1735318248224,-1313.42,0.00010657,2]
[346841406,1735318248234,-500.0,0.00010657,2]
[346841407,1735318248244,-500.0,0.00010657,2]
[346841408,1735318248254,-799.47,0.00010657,2]
[346841409,1735318248264,-500.0,0.00010657,2]
[346841410,1735318248275,-663.98,0.00010657,2]
[346841411,1735318248285,-500.0,0.00010657,2]
[346841412,1735318248294,-500.0,0.00010657,2]
[346841413,1735318248304,-500.0,0.00010657,2]
[346841414,1735318248314,-1743.97,0.00010657,2]
[346841415,1735318248324,-819.6,0.00010657,2]
[346841416,1735318248336,-1687.13,0.00010657,2]
[346841417,1735318248346,-944.78,0.00010657,2]
[346841418,1735318248357,-500.0,0.00010657,2]
[346841419,1735318248368,-500.0,0.00010657,2]
[346841420,1735318248378,-1020.09,0.00010657,2]
[346841421,1735318248388,-1256.51,0.00010657,2]
[346841422,1735318248713,-500.0,0.00010657,2]
[346841423,1735318248723,-902.9,0.00010657,2]
[346841424,1735318248733,-500.0,0.00010657,2]
[346841425,1735318248743,-1105.96,0.00010657,2]
[346841426,1735318248752,-1182.12,0.00010657,2]
[346841427,1735318248763,-1067.92,0.00010657,2]
[346841428,1735318248772,-1815.6,0.00010657,2]
[346841429,1735318248782,-500.0,0.00010657,2]
[346841430,1735318248791,-1073.96,0.00010657,2]
[346841431,1735318248801,-628.0,0.00010657,2]
[346841432,1735318248810,-1266.1,0.00010657,2]
[346841433,1735318248819,-500.0,0.00010657,2]
[346841434,1735318248829,-1523.13,0.00010657,2]
[346841435,1735318248839,-696.99,0.00010657,2]
[346841436,1735318248848,-833.09,0.00010657,2]
[346841437,1735318248858,-828.86,0.00010657,2]
[346841438,1735318248867,-500.0,0.00010657,2]
[346841439,1735318248877,-744.81,0.00010657,2]
[346841440,1735318248887,-643.31,0.00010657,2]
[346841441,1735318248896,-737.53,0.00010657,2]
[346841442,1735318248905,-500.0,0.00010657,2]
[346841443,1735318248914,-500.0,0.00010657,2]
[346841444,1735318248925,-785.06,0.00010657,2]
[346841445,1735318248934,-500.0,0.00010657,2]
[346841446,1735318248944,-500.0,0.00010657,2]
[346841447,1735318248953,-500.0,0.00010657,2]
[346841448,1735318248964,-723.74,0.00010657,2]
[346841449,1735318248974,-1075.6,0.00010657,2]
[346841450,1735318248983,-841.75,0.00010657,2]
[346841451,1735318248993,-569.56,0.00010657,2]
[346841452,1735318249003,-793.59,0.00010657,2]
[346841453,1735318249011,-500.0,0.00010657,2]
[346841454,1735318249021,-1066.4,0.00010657,2]
[346841455,1735318249030,-969.37,0.00010657,2]
[346841456,1735318249039,-500.0,0.00010657,2]
[346841457,1735318249049,-1914.48,0.00010657,2]
[346841458,1735318249058,-500.0,0.00010657,2]
[346841459,1735318249068,-500.0,0.00010657,2]
[346841460,1735318249077,-500.0,0.00010657,2]
[346841461,1735318249087,-500.0,0.00010657,2]
[346841462,1735318249097,-1633.63,0.00010657,2]
[346841463,1735318249107,-500.0,0.00010657,2]
[346841464,1735318249117,-500.0,0.00010657,2]
[346841465,1735318249126,-1898.18,0.00010657,2]
[346841466,1735318249136,-689.25,0.00010657,2]
[346841467,1735318249147,-500.0,0.00010657,2]
[346841468,1735318249156,-500.0,0.00010657,2]
[346841469,1735318249166,-500.0,0.00010657,2]
[346841470,1735318249175,-500.0,0.00010657,2]
[346841471,1735318249188,-500.0,0.00010657,2]
[346841472,1735318249199,-500.0,0.00010657,2]
[346841473,1735318249209,-500.0,0.00010657,2]
[346841474,1735318249219,-500.0,0.00010657,2]
[346841475,1735318249230,-808.32,0.00010657,2]
[346841476,1735318249240,-1305.34,0.00010657,2]
[346841477,1735318249251,-500.0,0.00010657,2]
[346841478,1735318249261,-707.84,0.00010657,2]
[346841479,1735318249273,-500.0,0.00010657,2]
[346841480,1735318249282,-500.0,0.00010657,2]
[346841481,1735318249292,-509.76,0.00010657,2]
[346841482,1735318249302,-500.0,0.00010657,2]
[346841483,1735318249313,-500.0,0.00010657,2]
[346841484,1735318249323,-500.0,0.00010657,2]
[346841485,1735318249335,-500.0,0.00010657,2]
[346841486,1735318249345,-501.06727096,0.00010657,2]
[346841487,1735318249355,-500.0,0.00010657,2]
[346841488,1735318249366,-500.0,0.00010657,2]
[346841489,1735318249376,-843.37,0.00010657,2]
[346841490,1735318249386,-500.0,0.00010657,2]
[346841491,1735318249395,-500.0,0.00010657,2]
[346841492,1735318249405,-500.0,0.00010657,2]
[346841493,1735318249414,-500.0,0.00010657,2]
[346841494,1735318249424,-988.1,0.00010657,2]
[346841495,1735318249434,-500.0,0.00010657,2]
[346841496,1735318249445,-828.85,0.00010657,2]
[346841497,1735318249455,-939.45,0.00010657,2]
[346841498,1735318249465,-500.0,0.00010657,2]
[346841499,1735318249475,-1655.51,0.00010657,2]
[346841500,1735318249485,-500.0,0.00010657,2]
[346841501,1735318249495,-500.0,0.00010657,2]
[346841502,1735318249505,-1469.44,0.00010657,2]
[346841503,1735318249515,-500.0,0.00010657,2]
[346841504,1735318249525,-1902.03,0.00010657,2]
[346841505,1735318249534,-605.24,0.00010657,2]
[346841506,1735318249543,-1754.9,0.00010657,2]
[346841507,1735318249553,-500.0,0.00010657,2]
[346841508,1735318249562,-500.0,0.00010657,2]
[346841509,1735318249573,-500.0,0.00010657,2]
[346841510,1735318249585,-500.0,0.00010657,2]
[346841511,1735318249595,-717.91,0.00010657,2]
[346841512,1735318249605,-500.0,0.00010657,2]
[346841513,1735318249615,-661.9,0.00010657,2]
[346841514,1735318249625,-1512.16,0.00010657,2]
[346841515,1735318249635,-500.0,0.00010657,2]
[346841516,1735318249645,-787.09,0.00010657,2]
[346841517,1735318249654,-571.8,0.00010657,2]
[346841518,1735318249664,-500.0,0.00010657,2]
[346841519,1735318249673,-1105.144624,0.00010658,2]
[346841520,1735318249683,-500.0,0.00010658,2]
[346841521,1735318249692,-527.19,0.00010658,2]
[346841522,1735318249702,-157.2612382,0.00010658,2]
[346841523,1735318249713,-500.0,0.00010658,2]
[346841524,1735318249727,-500.0,0.00010658,2]
[346841525,1735318249737,-500.0,0.00010658,2]
[346841526,1735318249747,-500.0,0.00010658,2]
[346841527,1735318249756,-500.0,0.00010658,2]
[346841528,1735318249766,-500.0,0.00010658,2]
[346841529,1735318249775,-1870.27,0.00010658,2]
[346841530,1735318249786,-928.63,0.00010658,2]
[346841531,1735318249795,-500.0,0.00010658,2]
[346841532,1735318249804,-526.35,0.00010658,2]
[346841533,1735318249813,-500.0,0.00010658,2]
[346841534,1735318249823,-1882.6,0.00010658,2]
[346841535,1735318249834,-500.0,0.00010658,2]
[346841536,1735318249844,-1078.71,0.00010658,2]
[346841537,1735318249854,-500.0,0.00010658,2]
[346841538,1735318249864,-500.0,0.00010658,2]
[346841539,1735318249873,-816.91,0.00010658,2]
[346841540,1735318249883,-542.22,0.00010658,2]
[346841541,1735318249893,-500.0,0.00010658,2]
[346841542,1735318249903,-2096.98,0.00010658,2]
[346841543,1735318249912,-500.0,0.00010658,2]
[346841544,1735318249922,-579.79547943,0.00010658,2]
[346841545,1735318249947,-78.42452057,0.00010658,2]
[346841546,1735318249956,-271.57547943,0.00010658,2]
[346841547,1735318249968,-228.42452057,0.00010658,2]
[346841548,1735318249977,-500.0,0.00010658,2]
[346841549,1735318249987,-500.0,0.00010658,2]
[346841550,1735318249996,-536.06,0.00010658,2]
[346841551,1735318250006,-1767.88,0.00010658,2]
[346841552,1735318250015,-500.0,0.00010658,2]
[346841553,1735318250026,-500.0,0.00010658,2]
[346841554,1735318250035,-2018.0,0.00010658,2]
[346841555,1735318250045,-500.0,0.00010658,2]
[346841556,1735318250056,-2479.44,0.00010658,2]
[346841557,1735318250065,-500.0,0.00010658,2]
[346841558,1735318250075,-500.0,0.00010658,2]
[346841559,1735318250086,-1713.17,0.00010658,2]
[346841560,1735318250095,-500.0,0.00010658,2]
[346841561,1735318250104,-500.0,0.00010658,2]
[346841562,1735318250114,-843.78,0.00010658,2]
[346841563,1735318250124,-4248.11,0.00010658,2]
[346841564,1735318250133,-500.0,0.00010658,2]
[346841565,1735318250143,-500.0,0.00010658,2]
[346841566,1735318250152,-2547.96,0.00010658,2]
[346841567,1735318250162,-3469.44977746,0.00010658,2]
[346841568,1735318250174,-1942.12400669,0.00010658,2]
[346841569,1735318250187,-5752.46621585,0.00010658,2]
[346841570,1735318250199,-500.0,0.00010658,2]
[346841571,1735318250208,-1825.37,0.00010658,2]
[346841572,1735318250217,-7133.59,0.00010658,2]
[346841573,1735318250227,-1474.16,0.00010658,2]
[346841574,1735318250236,-923.81,0.00010658,2]
[346841575,1735318250246,-2393.36,0.00010658,2]
[346841576,1735318250255,-3435.16,0.00010658,2]
[346841577,1735318250267,-8909.81,0.00010658,2]
[346841578,1735318250277,-19099.31,0.00010658,2]
[346841579,1735318250287,-2222.64,0.00010658,2]
[346841580,1735318250296,-500.0,0.00010658,2]
[346841581,1735318250306,-164.14857466,0.00010658,2]
[346841582,1735318250316,-1026.48,0.00010659,2]
[346841583,1735318250326,-500.0,0.00010659,2]
[346841584,1735318250340,-787.53,0.00010659,2]
[346841585,1735318250350,-819.29,0.00010659,2]
[346841586,1735318250359,-1314.51,0.00010659,2]
[346841587,1735318250369,-957.63,0.00010659,2]
[346841588,1735318250379,-785.18,0.00010659,2]
[346841589,1735318250388,-814.29,0.00010659,2]
[346841590,1735318250398,-500.0,0.00010659,2]
[346841591,1735318250408,-1301.82,0.00010659,2]
[346841592,1735318250419,-935.15,0.00010659,2]
[346841593,1735318250429,-1064.02,0.00010659,2]
[346841594,1735318250439,-918.69,0.00010659,2]
[346841595,1735318250448,-500.0,0.00010659,2]
[346841596,1735318250458,-1293.06,0.00010659,2]
[346841597,1735318250467,-580.65,0.00010659,2]
[346841598,1735318250482,-1449.79,0.00010659,2]
[346841599,1735318250491,-914.58,0.00010659,2]
[346841600,1735318250501,-965.35,0.00010659,2]
[346841601,1735318250511,-1531.05,0.00010659,2]
[346841602,1735318250520,-958.38,0.00010659,2]
[346841603,1735318250529,-732.21,0.00010659,2]
[346841604,1735318250538,-1060.4,0.00010659,2]
[346841605,1735318250548,-743.57,0.00010659,2]
[346841606,1735318250558,-2079.29,0.00010659,2]